fUST/lending_fUST_20250312
["ID","MTS","AMOUNT","RATE_DAILY","PERIOD"]
[355924787,1741716696539,-500.0,0.00023013,2]
[355924788,1741716696550,-500.0,0.00023013,2]
[355924789,1741716696565,-669.93,0.00023013,2]
[355924790,1741716696575,-500.0,0.00023013,2]
[355924791,1741716696585,-500.0,0.00023013,2]
[355924792,1741716696595,-500.0,0.00023013,2]
[355924793,1741716696605,-1907.14,0.00023013,2]
[355924794,1741716696619,-500.0,0.00023013,2]
[355924795,1741716696631,-500.0,0.00023013,2]
[355924796,1741716696640,-2813.74,0.00023013,2]
[355924797,1741716696650,-500.0,0.00023013,2]
[355924798,1741716696660,-562.82,0.00023013,2]
[355924799,1741716696669,-500.0,0.00023013,2]
[355924800,1741716696679,-1222.25,0.00023013,2]
[355924801,1741716696689,-500.0,0.00023013,2]
[355924802,1741716696699,-514.05,0.00023013,2]
[355924803,1741716696711,-2182.16,0.00023013,2]
[355924804,1741716696721,-500.0,0.00023013,2]
[355924805,1741716696731,-500.0,0.00023013,2]
[355924806,1741716696741,-500.0,0.00023013,2]
[355924807,1741716696751,-573.01,0.00023013,2]
[355924808,1741716696760,-4470.27,0.00023013,2]
[355924809,1741716696771,-1342.73,0.00023013,2]
[355924810,1741716696780,-500.0,0.00023013,2]
[355924811,1741716696792,-914.18,0.00023013,2]
[355924812,1741716696801,-500.0,0.00023013,2]
[355924813,1741716696811,-500.0,0.00023013,2]
[355924814,1741716696820,-578.89,0.00023013,2]
[355924815,1741716696830,-500.0,0.00023013,2]
[355924816,1741716696840,-500.0,0.00023013,2]
[355924817,1741716696849,-500.0,0.00023013,2]
[355924818,1741716696859,-989.87,0.00023013,2]
[355924819,1741716696867,-934.23,0.00023013,2]
[355924820,1741716696877,-885.21,0.00023013,2]
[355924821,1741716696887,-2800.07,0.00023013,2]
[355924823,1741716697147,-1444.17,0.00023013,2]
[355924824,1741716697158,-500.0,0.00023013,2]
[355924825,1741716697168,-500.0,0.00023013,2]
[355924826,1741716697178,-4730.12,0.00023013,2]
[355924827,1741716697188,-500.0,0.00023013,2]
[355924828,1741716697198,-500.0,0.00023013,2]
[355924829,1741716697207,-3755.9,0.00023013,2]
[355924830,1741716697217,-500.0,0.00023013,2]
[355924831,1741716697227,-500.0,0.00023013,2]
[355924832,1741716697237,-9446.84,0.00023013,2]
[355924833,1741716697247,-500.0,0.00023013,2]
[355924834,1741716697257,-2814.21,0.00023013,2]
[355924835,1741716697267,-3691.0,0.00023013,2]
[355924836,1741716697277,-1202.86,0.00023013,2]
[355924837,1741716697287,-500.0,0.00023013,2]
[355924838,1741716697297,-587.88,0.00023013,2]
[355924839,1741716697307,-500.0,0.00023013,2]
[355924840,1741716697317,-869.52,0.00023013,2]
[355924841,1741716697327,-500.0,0.00023013,2]
[355924842,1741716697336,-500.0,0.00023013,2]
[355924843,1741716697346,-500.0,0.00023013,2]
[355924844,1741716697356,-3579.07,0.00023013,2]
[355924845,1741716697366,-500.0,0.00023013,2]
[355924846,1741716697375,-299174.99,0.00023013,2]
[355924847,1741716697384,-508.65848836,0.00023013,2]
[355924848,1741716697394,-2945.67,0.00023013,2]
[355924849,1741716697404,-500.0,0.00023013,2]
[355924850,1741716697414,-880.17,0.00023013,2]
[355924851,1741716697424,-562.52917217,0.00023013,2]
[355924852,1741716697433,-500.0,0.00023013,2]
[355924853,1741716697443,-2983.87,0.00023013,2]
[355924854,1741716697452,-500.0,0.00023013,2]
[355924855,1741716697462,-500.0,0.00023013,2]
[355924856,1741716697472,-11349.89,0.00023013,2]
[355924857,1741716697482,-500.0,0.00023013,2]
[355924858,1741716697491,-500.0,0.00023013,2]
[355924859,1741716697500,-323.17649098,0.00023013,2]
[355924860,1741716697510,-500.0,0.00023013,2]
[355924861,1741716697520,-500.0,0.00023013,2]
[355924862,1741716697529,-811.32,0.00023013,2]
[355924863,1741716697538,-500.0,0.00023013,2]
[355924864,1741716697549,-500.0,0.00023013,2]
[355924865,1741716697558,-500.0,0.00023013,2]
[355924866,1741716697567,-6411.78,0.00023013,2]
[355924867,1741716697577,-1407.74,0.00023013,2]
[355924868,1741716697586,-500.0,0.00023013,2]
[355924869,1741716697595,-500.0,0.00023013,2]
[355924870,1741716697605,-2234.33,0.00023013,2]
[355924871,1741716697615,-1914.64,0.00023013,2]
[355924872,1741716697624,-500.0,0.00023013,2]
[355924873,1741716697634,-500.0,0.00023013,2]
[355924874,1741716697644,-500.0,0.00023013,2]
[355924875,1741716697653,-516.47,0.00023013,2]
[355924876,1741716697663,-1299.12,0.00023013,2]
[355924877,1741716697672,-522.43344146,0.00023013,2]
[355924878,1741716697682,-2072.12,0.00023013,2]
[355924879,1741716697692,-834.53,0.00023013,2]
[355924880,1741716697701,-500.0,0.00023013,2]
[355924881,1741716697711,-3763.62,0.00023013,2]
[355924882,1741716697720,-500.0,0.00023013,2]
[355924883,1741716697730,-551.18,0.00023013,2]
[355924884,1741716697740,-500.0,0.00023013,2]
[355924885,1741716697750,-3522.52,0.00023013,2]
[355924886,1741716697759,-500.0,0.00023013,2]
[355924887,1741716697769,-500.0,0.00023013,2]
[355924888,1741716697778,-658.55,0.00023013,2]
[355924889,1741716697788,-500.0,0.00023013,2]
[355924890,1741716697798,-500.0,0.00023013,2]
[355924891,1741716697807,-500.0,0.00023013,2]
[355924892,1741716697817,-583.5,0.00023013,2]
[355924893,1741716697826,-1515.05,0.00023013,2]
[355924894,1741716697836,-13694.52,0.00023013,2]
[355924895,1741716697846,-500.0,0.00023013,2]
[355924896,1741716697855,-2033.78,0.00023013,2]
[355924897,1741716697864,-157.53268587,0.00023013,2]
[355924898,1741716697874,-2419.19,0.00023013,2]
[355924899,1741716697883,-1260.46,0.00023013,2]
[355924900,1741716697892,-500.0,0.00023013,2]
[355924901,1741716697901,-1096.01,0.00023013,7]
[355924902,1741716697911,-500.0,0.00023013,2]
[355924903,1741716697920,-500.0,0.00023013,2]
[355924904,1741716697930,-947.72,0.00023013,2]
[355924905,1741716697939,-567.06,0.00023013,2]
[355924906,1741716697948,-967.47,0.00023013,2]
[355924907,1741716697958,-1574.32,0.00023013,2]
[355924908,1741716697967,-1213.75,0.00023013,2]
[355924909,1741716697977,-2759.01,0.00023013,2]
[355924910,1741716697986,-500.0,0.00023013,2]
[355924911,1741716697995,-500.0,0.00023013,2]
[355924912,1741716698005,-500.0,0.00023013,2]
[355924913,1741716698015,-1492.0,0.00023013,2]
[355924914,1741716698024,-500.0,0.00023013,2]
[355924915,1741716698034,-2494.97,0.00023013,2]
[355924916,1741716698047,-500.0,0.00023013,2]
[355924917,1741716698056,-10869.8,0.00023013,2]
[355924918,1741716698066,-500.0,0.00023013,2]
[355924919,1741716698076,-500.0,0.00023013,2]
[355924920,1741716698086,-724.88,0.00023013,2]
[355924921,1741716698095,-500.0,0.00023013,2]
[355924922,1741716698104,-500.0,0.00023013,2]
[355924923,1741716698114,-500.0,0.00023013,2]
[355924924,1741716698126,-537.03,0.00023013,2]
[355924925,1741716698136,-500.0,0.00023013,2]
[355924926,1741716698145,-500.0,0.00023013,2]
[355924927,1741716698155,-500.0,0.00023013,2]
[355924928,1741716698164,-212.68197393,0.00023013,2]
[355924929,1741716698173,-1067.93,0.00023013,2]
[355924930,1741716698183,-751.32,0.00023013,2]
[355924931,1741716698192,-500.0,0.00023013,2]
[355924932,1741716698203,-500.0,0.00023013,2]
[355924933,1741716698213,-725.1,0.00023013,2]
[355924934,1741716698222,-500.0,0.00023013,2]
[355924935,1741716698234,-5830.62,0.00023013,2]
[355924936,1741716698243,-500.0,0.00023013,2]
[355924937,1741716698253,-13663.82,0.00023013,2]
[355924938,1741716698263,-8586.74,0.00023013,2]
[355924939,1741716698272,-500.0,0.00023013,2]
[355924940,1741716698282,-500.0,0.00023013,2]
[355924941,1741716698292,-500.0,0.00023013,2]
[355924942,1741716698301,-500.0,0.00023013,2]
[355924943,1741716698311,-1052.85,0.00023013,2]
[355924944,1741716698320,-710.74,0.00023013,2]
[355924945,1741716698330,-500.0,0.00023013,2]
[355924946,1741716698339,-1490.39,0.00023013,2]
[355924947,1741716698348,-562.29,0.00023013,2]
[355924948,1741716698358,-2664.47,0.00023013,2]
[355924949,1741716698367,-500.0,0.00023013,2]
[355924950,1741716698376,-760.33,0.00023013,2]
[355924951,1741716698385,-500.0,0.00023013,2]
[355924952,1741716698395,-9046.62,0.00023013,2]
[355924953,1741716698404,-539.78044798,0.00023013,2]
[355924954,1741716698413,-500.0,0.00023013,2]
[355924955,1741716698423,-500.0,0.00023013,2]
[355924956,1741716698432,-683.04,0.00023013,2]
[355924957,1741716698441,-3131.63,0.00023013,2]
[355924958,1741716698451,-1176.59,0.00023013,2]
[355924959,1741716698460,-1428.31,0.00023013,2]
[355924960,1741716698469,-1006.02,0.00023013,2]
[355924961,1741716698478,-465.5715001,0.00023013,2]
[355924962,1741716698488,-500.0,0.00023013,2]
[355924963,1741716698497,-1000.0,0.00023013,2]
[355924964,1741716698506,-500.0,0.00023013,2]
[355924965,1741716698515,-1287.74,0.00023013,2]
[355924966,1741716698525,-1569.12,0.00023013,2]
[355924967,1741716698534,-2049.22,0.00023013,2]
[355924968,1741716698545,-500.0,0.00023013,2]
[355924969,1741716698555,-500.0,0.00023013,2]
[355924970,1741716698564,-1105.59,0.00023013,2]
[355924971,1741716698573,-1986.41,0.00023013,2]
[355924972,1741716698583,-633.94,0.00023013,2]
[355924973,1741716698592,-701.01,0.00023013,2]
[355924974,1741716698602,-500.0,0.00023013,2]
[355924975,1741716698611,-1151.53,0.00023013,2]
[355924976,1741716698620,-500.0,0.00023013,2]
[355924977,1741716698630,-1137.57,0.00023013,2]
[355924978,1741716698639,-500.0,0.00023013,2]
[355924979,1741716698649,-500.0,0.00023013,2]
[355924980,1741716698658,-500.0,0.00023013,2]
[355924981,1741716698668,-500.0,0.00023013,2]
[355924982,1741716698677,-2208.74,0.00023013,2]
[355924983,1741716698687,-500.0,0.00023013,2]
[355924984,1741716698696,-500.0,0.00023013,2]
[355924985,1741716698706,-3979.18,0.00023013,2]
[355924986,1741716698715,-779.1,0.00023013,2]
[355924987,1741716698725,-500.0,0.00023013,2]
[355924988,1741716698734,-16462.07,0.00023013,2]
[355924989,1741716698744,-690.32,0.00023013,2]
[355924990,1741716698753,-500.0,0.00023013,2]
[355924991,1741716698763,-500.0,0.00023013,2]
[355924992,1741716698772,-183.0,0.00023014,2]
[355924993,1741716698781,-500.0,0.00023081,2]
[355924994,1741716698791,-500.0,0.00023273,2]
[355924995,1741716698802,-500.0,0.00023287,2]
[355924996,1741716698811,-500.0,0.00023287,2]
[355924997,1741716698821,-1340.89,0.00023287,2]
[355924998,1741716698830,-500.0,0.00023287,2]
[355924999,1741716698839,-500.0,0.00023287,2]
[355925000,1741716698849,-1201.45,0.00023287,2]
[355925001,1741716698858,-590.28,0.00023287,2]
[355925002,1741716698868,-500.0,0.00023287,2]
[355925003,1741716698877,-500.0,0.00023287,2]
[355925004,1741716698887,-500.0,0.00023287,2]
[355925005,1741716698896,-500.0,0.00023287,2]
[355925006,1741716698906,-500.0,0.00023287,2]
[355925007,1741716698916,-500.0,0.00023287,2]
[355925008,1741716698925,-500.0,0.00023287,2]
[355925009,1741716698935,-214.34759687,0.00023287,2]
[355925010,1741716698944,-513.85,0.00023287,2]
[355925011,1741716698953,-1074.73,0.00023287,2]
[355925012,1741716698962,-500.0,0.00023287,2]
[355925013,1741716698972,-500.0,0.00023287,2]
[355925014,1741716698981,-500.0,0.00023287,2]
[355925015,1741716698990,-500.0,0.00023287,2]
[355925016,1741716699000,-500.0,0.00023287,2]
[355925017,1741716699009,-500.0,0.00023287,2]
[355925018,1741716699018,-581.53,0.00023287,2]
[355925019,1741716699028,-500.0,0.00023287,2]
[355925020,1741716699039,-500.0,0.00023287,2]
[355925021,1741716699052,-580.27630858,0.00023287,2]
[355925022,1741716699062,-194.2594218,0.00023287,2]
[355925023,1741716699071,-249.9900029,0.00023287,2]
[355925024,1741716699081,-574.58934808,0.00023287,2]
[355925025,1741716699090,-580.39369652,0.00023287,2]
[355925026,1741716699100,-549.70060848,0.00023287,2]
[355925027,1741716699109,-500.0,0.00023287,2]
[355925029,1741716699119,-541.93292018,0.00023287,2]
[355925030,1741716699129,-500.0,0.00023287,2]
[355925031,1741716699138,-500.0,0.00023287,2]
[355925032,1741716699147,-560.30694323,0.00023287,2]
[355925033,1741716699157,-500.0,0.00023287,2]
[355925034,1741716699166,-543.08430833,0.00023287,2]
[355925035,1741716699176,-500.0,0.00023287,2]
[355925036,1741716699185,-500.0,0.00023287,2]
[355925037,1741716699194,-500.0,0.00023287,2]
[355925038,1741716699204,-809.72,0.00023287,2]
[355925039,1741716699213,-453.0009464,0.00023287,2]
[355925040,1741716699222,-579.88901842,0.00023287,2]
[355925041,1741716699232,-500.0,0.00023287,2]
[355925042,1741716699241,-1428.98,0.00023287,2]
[355925043,1741716699250,-500.0,0.00023287,2]
[355925044,1741716699259,-257.06081072,0.00023287,2]
[355925045,1741716699269,-500.0,0.00023287,2]
[355925046,1741716699278,-500.0,0.00023287,2]
[355925047,1741716699288,-1443.03,0.00023287,2]
[355925048,1741716699299,-500.0,0.00023287,2]
[355925049,1741716699308,-503.86274598,0.00023287,2]
[355925050,1741716699317,-606.78,0.00023287,2]
[355925051,1741716699327,-500.0,0.00023287,2]
[355925052,1741716699336,-500.0,0.00023287,2]
[355925053,1741716699345,-537.16313615,0.00023287,2]
[355925054,1741716699355,-500.0,0.00023287,2]
[355925055,1741716699364,-500.0,0.00023287,2]
[355925056,1741716699374,-500.0,0.00023287,2]
[355925057,1741716699383,-500.0,0.00023287,2]
[355925058,1741716699393,-500.0,0.00023287,2]
[355925059,1741716699402,-500.0,0.00023287,2]
[355925060,1741716699411,-500.0,0.00023287,2]
[355925061,1741716699420,-500.0,0.00023287,2]
[355925062,1741716699429,-500.0,0.00023287,2]
[355925063,1741716699438,-500.0,0.00023287,2]
[355925064,1741716699448,-1247.36,0.00023287,2]
[355925065,1741716699457,-500.0,0.00023287,2]
[355925066,1741716699466,-500.0,0.00023287,2]
[355925067,1741716699475,-500.0,0.00023287,2]
[355925068,1741716699485,-500.0,0.00023287,2]
[355925069,1741716699494,-500.0,0.00023287,2]
[355925070,1741716699503,-500.0,0.00023287,2]
[355925071,1741716699513,-500.0,0.00023287,2]
[355925072,1741716699522,-500.0,0.00023287,2]
[355925073,1741716699531,-529.4619268,0.00023287,2]
[355925074,1741716699541,-501.99,0.00023287,2]
[355925075,1741716699551,-500.0,0.00023287,2]
[355925076,1741716699561,-1321.15,0.00023287,2]
[355925077,1741716699570,-500.0,0.00023287,2]
[355925078,1741716699579,-500.0,0.00023287,2]
[355925079,1741716699588,-500.0,0.00023287,2]
[355925080,1741716699598,-500.0,0.00023287,2]
[355925081,1741716699607,-500.0,0.00023287,2]
[355925082,1741716699616,-1620.73,0.00023287,5]
[355925083,1741716699626,-530.60391255,0.00023287,2]
[355925084,1741716699635,-1350.19,0.00023287,2]
[355925085,1741716699644,-500.0,0.00023287,2]
[355925086,1741716699653,-500.0,0.00023287,2]
[355925087,1741716699663,-500.0,0.00023287,2]
[355925088,1741716699672,-500.0,0.00023287,2]
[355925089,1741716699681,-1488.21,0.00023287,2]
[355925090,1741716699690,-500.0,0.00023287,2]
[355925091,1741716699699,-500.0,0.00023287,2]
[355925092,1741716699708,-500.0,0.00023287,2]
[355925093,1741716699718,-500.0,0.00023287,2]
[355925094,1741716699728,-500.0,0.00023287,2]
[355925095,1741716699737,-333.97503442,0.00023287,2]
[355925096,1741716699747,-500.0,0.00023287,2]
[355925097,1741716699756,-500.0,0.00023287,2]
[355925098,1741716699766,-1803.96,0.00023287,2]
[355925099,1741716699775,-500.0,0.00023287,2]
[355925100,1741716699784,-500.0,0.00023287,2]
[355925101,1741716699794,-500.0,0.00023287,2]
[355925102,1741716699804,-500.0,0.00023287,2]
[355925103,1741716699813,-500.0,0.00023287,2]
[355925104,1741716699822,-500.0,0.00023287,2]
[355925105,1741716699831,-500.0,0.00023287,2]
[355925106,1741716699840,-500.0,0.00023287,2]
[355925107,1741716699850,-500.0,0.00023287,2]
[355925108,1741716699860,-500.0,0.00023287,2]
[355925109,1741716699869,-657.25,0.00023287,2]
[355925110,1741716699878,-500.0,0.00023287,2]
[355925111,1741716699887,-788.64,0.00023287,2]
[355925112,1741716699897,-500.0,0.00023287,2]
[355925113,1741716699906,-857.78,0.00023287,2]
[355925114,1741716699915,-500.0,0.00023287,2]
[355925115,1741716699924,-500.0,0.00023287,2]
[355925116,1741716699934,-500.0,0.00023287,2]
[355925117,1741716700173,-2304.11,0.00023287,2]
[355925118,1741716700184,-500.0,0.00023287,2]
[355925119,1741716700194,-500.0,0.00023287,2]
[355925120,1741716700204,-3573.38,0.00023287,2]
[355925121,1741716700213,-2654.41,0.00023287,2]
[355925122,1741716700224,-912.54,0.00023287,2]
[355925123,1741716700234,-617.69053668,0.00023287,2]
[355925124,1741716700243,-627.59,0.00023287,2]
[355925125,1741716700253,-1747.6,0.00023287,2]
[355925126,1741716700262,-574.19,0.00023287,2]
[355925127,1741716700272,-500.0,0.00023287,2]
[355925128,1741716700281,-617.45,0.00023287,2]
[355925129,1741716700291,-500.0,0.00023287,2]
[355925130,1741716700304,-500.0,0.00023287,2]
[355925131,1741716700314,-500.0,0.00023287,2]
[355925132,1741716700323,-500.0,0.00023287,2]
[355925133,1741716700334,-500.0,0.00023287,2]
[355925134,1741716700344,-512.1,0.00023287,2]
[355925135,1741716700354,-500.0,0.00023287,2]
[355925136,1741716700363,-500.0,0.00023287,2]
[355925137,1741716700373,-1624.83,0.00023287,2]
[355925138,1741716700382,-500.0,0.00023287,2]
[355925139,1741716700392,-500.0,0.00023287,2]
[355925140,1741716700401,-1388.31,0.00023287,2]
[355925141,1741716700411,-500.0,0.00023287,2]
[355925142,1741716700420,-500.0,0.00023287,2]
[355925143,1741716700429,-500.0,0.00023287,2]
[355925144,1741716700439,-2527.61,0.00023287,2]
[355925145,1741716700449,-500.0,0.00023287,2]
[355925146,1741716700458,-500.0,0.00023287,2]
[355925147,1741716700468,-1505.11,0.00023287,2]
[355925148,1741716700477,-1159.19,0.00023287,2]
[355925149,1741716700487,-500.0,0.00023287,2]
[355925150,1741716700496,-500.0,0.00023287,2]
[355925151,1741716700505,-500.0,0.00023287,2]
[355925152,1741716700515,-500.0,0.00023287,2]
[355925153,1741716700524,-1771.79,0.00023287,2]
[355925154,1741716700533,-500.0,0.00023287,2]
[355925155,1741716700544,-2594.12,0.00023287,2]
[355925156,1741716700554,-500.0,0.00023287,2]
[355925157,1741716700564,-500.0,0.00023287,2]
[355925158,1741716700573,-564.98,0.00023287,2]
[355925159,1741716700582,-741.15,0.00023287,2]
[355925160,1741716700591,-514.01,0.00023287,2]
[355925161,1741716700601,-500.0,0.00023287,2]
[355925162,1741716700610,-500.0,0.00023287,2]
[355925163,1741716700620,-500.0,0.00023287,2]
[355925164,1741716700630,-500.0,0.00023287,2]
[355925165,1741716700640,-500.0,0.00023287,2]
[355925166,1741716700649,-773.02,0.00023287,2]
[355925167,1741716700660,-500.0,0.00023287,2]
[355925168,1741716700670,-783.0,0.00023287,2]
[355925169,1741716700680,-500.0,0.00023287,2]
[355925170,1741716700690,-500.0,0.00023287,2]
[355925171,1741716700700,-500.0,0.00023287,2]
[355925172,1741716700710,-1890.4,0.00023287,2]
[355925173,1741716700719,-500.0,0.00023287,2]
[355925174,1741716700729,-514.86531919,0.00023287,2]
[355925175,1741716700739,-500.0,0.00023287,2]
[355925176,1741716700749,-669.95,0.00023287,2]
[355925177,1741716700759,-500.0,0.00023287,2]
[355925178,1741716700769,-647.88,0.00023287,2]
[355925179,1741716700779,-1680.4,0.00023287,2]
[355925180,1741716700789,-500.0,0.00023287,2]
[355925181,1741716700806,-523.3,0.00023287,2]
[355925182,1741716700815,-1121.75,0.00023287,2]
[355925183,1741716700825,-500.0,0.00023287,2]
[355925184,1741716700835,-647.83,0.00023287,2]
[355925185,1741716700844,-500.0,0.00023287,2]
[355925186,1741716700854,-1614.37,0.00023287,2]
[355925187,1741716700863,-500.0,0.00023287,2]
[355925188,1741716700872,-551.83087853,0.00023287,2]
[355925189,1741716700882,-500.0,0.00023287,2]
[355925190,1741716700891,-607.02,0.00023287,2]
[355925191,1741716700900,-198.55497705,0.00023287,2]
[355925192,1741716700910,-800.76,0.00023287,2]
[355925193,1741716700920,-1280.44,0.00023287,2]
[355925194,1741716700929,-500.0,0.00023287,2]
[355925195,1741716700938,-500.0,0.00023287,2]
[355925196,1741716700948,-555.5,0.00023287,2]
[355925197,1741716700958,-500.0,0.00023287,2]
[355925198,1741716700968,-500.0,0.00023287,2]
[355925199,1741716700977,-500.0,0.00023287,2]
[355925200,1741716700987,-500.0,0.00023287,2]
[355925201,1741716700996,-721.26,0.00023287,2]
[355925202,1741716701006,-1615.29,0.00023287,2]
[355925203,1741716701015,-500.0,0.00023287,2]
[355925204,1741716701025,-500.0,0.00023287,2]
[355925205,1741716701035,-500.0,0.00023287,2]
[355925206,1741716701050,-500.0,0.00023287,2]
[355925207,1741716701059,-500.0,0.00023287,2]
[355925208,1741716701069,-500.0,0.00023287,2]
[355925209,1741716701079,-500.0,0.00023287,2]
[355925210,1741716701089,-1063.8,0.00023287,2]
[355925211,1741716701099,-993.16,0.00023287,2]
[355925212,1741716701110,-500.0,0.00023287,2]
[355925213,1741716701121,-523.99337062,0.00023287,2]
[355925214,1741716701131,-2377.08,0.00023287,2]
[355925215,1741716701140,-500.0,0.00023287,2]
[355925216,1741716701150,-520.42444089,0.00023287,2]
[355925217,1741716701159,-500.0,0.00023287,2]
[355925218,1741716701169,-500.0,0.00023287,2]
[355925219,1741716701179,-1689.79,0.00023287,2]
[355925220,1741716701189,-1182.74,0.00023287,2]
[355925221,1741716701201,-500.0,0.00023287,2]
[355925222,1741716701211,-500.0,0.00023287,2]
[355925223,1741716701221,-500.0,0.00023287,2]
[355925224,1741716701231,-500.0,0.00023287,2]
[355925226,1741716701241,-435.80487544,0.00023287,2]
[355925227,1741716701250,-2662.49,0.00023287,2]
[355925228,1741716701260,-1204.27,0.00023287,2]
[355925229,1741716701271,-760.44,0.00023287,2]
[355925230,1741716701280,-500.0,0.00023287,2]
[355925231,1741716701290,-717.54,0.00023287,2]
[355925232,1741716701301,-500.0,0.00023287,2]
[355925233,1741716701311,-500.0,0.00023287,2]
[355925234,1741716701320,-500.0,0.00023287,2]
[355925235,1741716701330,-500.0,0.00023287,2]
[355925236,1741716701339,-1467.71,0.00023287,2]
[355925237,1741716701349,-500.0,0.00023287,2]
[355925238,1741716701358,-2537.49,0.00023287,2]
[355925239,1741716701368,-500.0,0.00023287,2]
[355925240,1741716701378,-500.0,0.00023287,2]
[355925241,1741716701388,-500.0,0.00023287,2]
[355925242,1741716701399,-500.0,0.00023287,2]
[355925243,1741716701409,-500.0,0.00023287,2]
[355925244,1741716701419,-1701.43,0.00023287,2]
[355925245,1741716701429,-500.0,0.00023287,2]
[355925246,1741716701439,-500.0,0.00023287,2]
[355925247,1741716701449,-1155.99,0.00023287,2]
[355925248,1741716701459,-500.0,0.00023287,2]
[355925249,1741716701469,-500.0,0.00023287,2]
[355925250,1741716701479,-644.13,0.00023287,2]
[355925251,1741716701489,-500.0,0.00023287,2]
[355925252,1741716701499,-834.21,0.00023287,2]
[355925253,1741716701508,-798.51,0.00023287,2]
[355925254,1741716701518,-500.0,0.00023287,2]
[355925255,1741716701528,-500.0,0.00023287,2]
[355925256,1741716701538,-908.5,0.00023287,2]
[355925257,1741716701549,-523.30119005,0.00023287,2]
[355925258,1741716701559,-500.0,0.00023287,2]
[355925259,1741716701569,-500.0,0.00023287,2]
[355925260,1741716701578,-572.05,0.00023287,2]
[355925261,1741716701588,-500.0,0.00023287,2]
[355925262,1741716701598,-500.0,0.00023287,2]
[355925263,1741716701608,-1740.21,0.00023287,2]
[355925264,1741716701618,-1291.37,0.00023287,2]
[355925265,1741716701627,-500.0,0.00023287,2]
[355925266,1741716701637,-1766.21,0.00023287,2]
[355925267,1741716701646,-682.17,0.00023287,2]
[355925268,1741716701656,-500.0,0.00023287,2]
[355925269,1741716701666,-893.83,0.00023287,2]
[355925270,1741716701676,-500.0,0.00023287,2]
[355925271,1741716701685,-500.0,0.00023287,2]
[355925272,1741716701695,-500.0,0.00023287,2]
[355925273,1741716701704,-500.0,0.00023287,2]
[355925274,1741716701714,-607.50371494,0.00023287,2]
[355925275,1741716701724,-500.0,0.00023287,2]
[355925276,1741716701733,-500.0,0.00023287,2]
[355925277,1741716701743,-500.0,0.00023287,2]
[355925278,1741716701752,-2321.3,0.00023287,2]
[355925279,1741716701763,-500.0,0.00023287,2]
[355925280,1741716701772,-500.0,0.00023287,2]
[355925281,1741716701782,-1549.95,0.00023287,2]
[355925282,1741716701792,-2086.15,0.00023287,2]
[355925283,1741716701805,-500.0,0.00023287,2]
[355925284,1741716701815,-500.0,0.00023287,2]
[355925285,1741716701824,-1804.17,0.00023287,2]
[355925286,1741716701834,-931.4,0.00023287,2]
[355925287,1741716701844,-500.0,0.00023287,2]
[355925288,1741716701854,-500.0,0.00023287,2]
[355925289,1741716701863,-1203.57,0.00023287,2]